[Event "*** Titled Tuesday Blitz"]
[Site "Chess.com"]
[Date "2018.05.01"]
[Round "4"]
[White "RojonR"]
[Black "LawrenceTrent"]
[Result "0-1"]
[WhiteElo "2379"]
[BlackElo "2459"]
[TimeControl "180+2"]
[EndTime "13:53:48 PDT"]
[Termination "LawrenceTrent won by resignation"]

1. e4 {[%clk 0:03:01.9]} 1... e5 {[%clk 0:03:00.7]} 2. Nf3 {[%clk 0:03:02.3]}
2... Nc6 {[%clk 0:03:02]} 3. Bc4 {[%clk 0:03:00.9]} 3... Nf6 {[%clk 0:03:03]} 4.
c3 {[%clk 0:02:58.6]} 4... Nxe4 {[%clk 0:02:46]} 5. O-O {[%clk 0:02:52.7]} 5...
d5 {[%clk 0:02:45.2]} 6. Bb5 {[%clk 0:02:48.9]} 6... Bd6 {[%clk 0:02:46.3]} 7.
d4 {[%clk 0:02:41.8]} 7... exd4 {[%clk 0:02:45.8]} 8. Nxd4 {[%clk 0:02:42.1]}
8... O-O {[%clk 0:02:12.3]} 9. Nxc6 {[%clk 0:02:03.7]} 9... bxc6 {[%clk
0:01:55.4]} 10. Bxc6 {[%clk 0:02:02.1]} 10... Rb8 {[%clk 0:01:26.7]} 11. Bxd5
{[%clk 0:01:56.1]} 11... Re8 {[%clk 0:01:24.3]} 12. Bc6 {[%clk 0:00:59.9]} 12...
Re6 {[%clk 0:00:43.4]} 13. Bxe4 {[%clk 0:00:55.5]} 13... Rxe4 {[%clk 0:00:43.8]}
14. Nd2 {[%clk 0:00:56.3]} 14... Re8 {[%clk 0:00:38.4]} 15. Nf3 {[%clk
0:00:46.1]} 15... Bg4 {[%clk 0:00:36.8]} 16. h3 {[%clk 0:00:46.9]} 16... Bh5
{[%clk 0:00:37.6]} 17. b3 {[%clk 0:00:29.5]} 17... Qf6 {[%clk 0:00:37.8]} 18.
Bb2 {[%clk 0:00:30.2]} 18... Rbd8 {[%clk 0:00:37.4]} 19. c4 {[%clk 0:00:24.9]}
19... Qg6 {[%clk 0:00:21.2]} 20. Qb1 {[%clk 0:00:17.9]} 20... Bxf3 {[%clk
0:00:17.9]} 21. Qxg6 {[%clk 0:00:18.1]} 21... hxg6 {[%clk 0:00:19.7]} 22. gxf3
{[%clk 0:00:19.9]} 22... Re2 {[%clk 0:00:21.1]} 23. Bd4 {[%clk 0:00:18.9]} 23...
a6 {[%clk 0:00:20.6]} 24. Be3 {[%clk 0:00:17.8]} 24... Be5 {[%clk 0:00:21]} 25.
Rad1 {[%clk 0:00:17.5]} 25... Rxd1 {[%clk 0:00:21]} 26. Rxd1 {[%clk 0:00:19.4]}
26... Rxa2 {[%clk 0:00:22.6]} 27. Rd5 {[%clk 0:00:20.4]} 27... Bd6 {[%clk
0:00:22.1]} 28. c5 {[%clk 0:00:20.8]} 28... Be7 {[%clk 0:00:23.4]} 29. Rd7
{[%clk 0:00:21.3]} 29... Bf6 {[%clk 0:00:21.2]} 30. Rxc7 {[%clk 0:00:22.1]}
30... Kf8 {[%clk 0:00:20.9]} 31. Rc8+ {[%clk 0:00:23]} 31... Ke7 {[%clk
0:00:21.9]} 32. c6 {[%clk 0:00:24.5]} 32... Kd6 {[%clk 0:00:22.7]} 33. b4 {[%clk
0:00:23.6]} 33... Be5 {[%clk 0:00:22.1]} 34. Bc5+ {[%clk 0:00:24]} 34... Kd5
{[%clk 0:00:22.1]} 35. c7 {[%clk 0:00:23.3]} 35... Kc6 {[%clk 0:00:22.4]} 36.
Rf8 {[%clk 0:00:21.9]} 36... Bxc7 {[%clk 0:00:20]} 37. Rxf7 {[%clk 0:00:23.4]}
37... Be5 {[%clk 0:00:21.3]} 38. f4 {[%clk 0:00:24.4]} 38... Bf6 {[%clk
0:00:21.8]} 39. Kg2 {[%clk 0:00:24.6]} 39... a5 {[%clk 0:00:21.9]} 40. Ra7
{[%clk 0:00:24.7]} 40... Kb5 {[%clk 0:00:22.3]} 41. Bf8 {[%clk 0:00:23.5]} 41...
a4 {[%clk 0:00:21.7]} 42. Bxg7 {[%clk 0:00:23]} 42... Bxg7 {[%clk 0:00:22.7]}
43. Rxg7 {[%clk 0:00:24.9]} 43... Kxb4 {[%clk 0:00:23.3]} 44. Rxg6 {[%clk
0:00:26.1]} 44... Rc2 {[%clk 0:00:24.3]} 45. Rb6+ {[%clk 0:00:25.8]} 45... Ka5
{[%clk 0:00:24.2]} 46. Rb8 {[%clk 0:00:26.6]} 46... Rc6 {[%clk 0:00:24.5]} 47.
f5 {[%clk 0:00:27.3]} 47... a3 {[%clk 0:00:25.5]} 48. Rb1 {[%clk 0:00:26.8]}
48... Ka4 {[%clk 0:00:25.8]} 49. Kg3 {[%clk 0:00:26.7]} 49... a2 {[%clk
0:00:27.1]} 50. Re1 {[%clk 0:00:26.8]} 50... Rb6 {[%clk 0:00:27.4]} 51. Kg4
{[%clk 0:00:20.9]} 51... Rb1 {[%clk 0:00:27.3]} 52. Re8 {[%clk 0:00:21.8]} 52...
Rb5 {[%clk 0:00:25.5]} 53. Re1 {[%clk 0:00:22.5]} 53... Rb1 {[%clk 0:00:26.2]}
54. Re8 {[%clk 0:00:23.4]} 54... Kb5 {[%clk 0:00:25.9]} 55. Ra8 {[%clk
0:00:22.8]} 55... a1=Q {[%clk 0:00:24.2]} 56. Rxa1 {[%clk 0:00:23.2]} 56... Rxa1
{[%clk 0:00:26.1]} 57. h4 {[%clk 0:00:19.1]} 57... Kc6 {[%clk 0:00:27]} 58. Kg5
{[%clk 0:00:18.8]} 58... Kd7 {[%clk 0:00:28.1]} 59. Kf6 {[%clk 0:00:20.3]} 59...
Ke8 {[%clk 0:00:28.4]} 0-1

[Event "*** Titled Tuesday Blitz"]
[Site "Chess.com"]
[Date "2018.05.01"]
[Round "4"]
[White "arna"]
[Black "tteshan"]
[Result "1-0"]
[WhiteElo "2126"]
[BlackElo "1977"]
[TimeControl "180+2"]
[EndTime "13:53:49 PDT"]
[Termination "arna won by resignation"]

1. e4 {[%clk 0:03:01.9]} 1... c5 {[%clk 0:03:00.6]} 2. Nf3 {[%clk 0:02:58.2]}
2... e6 {[%clk 0:03:01.7]} 3. d4 {[%clk 0:02:51.5]} 3... cxd4 {[%clk 0:03:02.6]}
4. Nxd4 {[%clk 0:02:53.4]} 4... a6 {[%clk 0:03:03.5]} 5. Nc3 {[%clk 0:02:52.7]}
5... Qc7 {[%clk 0:03:02.7]} 6. g3 {[%clk 0:02:53.2]} 6... Nf6 {[%clk 0:02:56.5]}
7. Bg2 {[%clk 0:02:53.5]} 7... d6 {[%clk 0:02:55.6]} 8. O-O {[%clk 0:02:50.7]}
8... Be7 {[%clk 0:02:56.9]} 9. f4 {[%clk 0:02:42.1]} 9... Nc6 {[%clk 0:02:58]}
10. Nxc6 {[%clk 0:02:23.8]} 10... bxc6 {[%clk 0:02:58.3]} 11. e5 {[%clk
0:02:25.2]} 11... Nd5 {[%clk 0:02:58]} 12. exd6 {[%clk 0:02:21.3]} 12... Bxd6
{[%clk 0:02:59]} 13. Ne4 {[%clk 0:02:09.7]} 13... Be7 {[%clk 0:02:55.2]} 14. Kh1
{[%clk 0:02:03.7]} 14... O-O {[%clk 0:02:54.8]} 15. c4 {[%clk 0:01:49.9]} 15...
Nf6 {[%clk 0:02:55.1]} 16. Qc2 {[%clk 0:01:14.4]} 16... Bb7 {[%clk 0:02:49.4]}
17. c5 {[%clk 0:01:08.5]} 17... Rfd8 {[%clk 0:02:40.7]} 18. Nxf6+ {[%clk
0:00:53.4]} 18... Bxf6 {[%clk 0:02:41.5]} 19. Be3 {[%clk 0:00:55.3]} 19... Bd4
{[%clk 0:02:35.2]} 20. Bxd4 {[%clk 0:00:46.6]} 20... Rxd4 {[%clk 0:02:36.3]} 21.
Rfd1 {[%clk 0:00:48.1]} 21... Rad8 {[%clk 0:02:32.5]} 22. Rxd4 {[%clk 0:00:49]}
22... Rxd4 {[%clk 0:02:33.5]} 23. Rd1 {[%clk 0:00:23.6]} 23... Rxd1+ {[%clk
0:02:23.4]} 24. Qxd1 {[%clk 0:00:25.5]} 24... a5 {[%clk 0:02:22]} 25. Qd4 {[%clk
0:00:15.3]} 25... Kf8 {[%clk 0:02:19.5]} 26. Be4 {[%clk 0:00:12.9]} 26... h6
{[%clk 0:02:19.8]} 27. Kg2 {[%clk 0:00:13.3]} 27... Ke7 {[%clk 0:02:18.4]} 28.
Qxg7 {[%clk 0:00:11.1]} 28... h5 {[%clk 0:02:11.6]} 29. Qg5+ {[%clk 0:00:11]}
29... Ke8 {[%clk 0:02:10.3]} 30. Qg8+ {[%clk 0:00:11.1]} 30... Ke7 {[%clk
0:02:10.8]} 31. Qg5+ {[%clk 0:00:12.7]} 31... Ke8 {[%clk 0:02:11.5]} 32. Qxh5
{[%clk 0:00:14.2]} 32... a4 {[%clk 0:02:09.6]} 33. Qh8+ {[%clk 0:00:14.3]} 33...
Ke7 {[%clk 0:02:10.1]} 34. Qe5 {[%clk 0:00:11.3]} 34... Qd7 {[%clk 0:02:06.9]}
35. Qd6+ {[%clk 0:00:08.5]} 35... Qxd6 {[%clk 0:02:07.4]} 36. cxd6+ {[%clk
0:00:10.4]} 36... Kxd6 {[%clk 0:02:09]} 37. h4 {[%clk 0:00:12.3]} 37... Ba6
{[%clk 0:02:09.1]} 38. Kf2 {[%clk 0:00:11.5]} 38... f5 {[%clk 0:02:08.9]} 39.
Bc2 {[%clk 0:00:10.8]} 39... Bc4 {[%clk 0:02:05.3]} 40. a3 {[%clk 0:00:09.6]}
40... Bb5 {[%clk 0:02:02.3]} 41. b3 {[%clk 0:00:10.5]} 41... axb3 {[%clk
0:02:01.5]} 42. Bxb3 {[%clk 0:00:12.4]} 42... c5 {[%clk 0:02:02.8]} 43. h5
{[%clk 0:00:08.9]} 43... c4 {[%clk 0:02:01.4]} 44. Bc2 {[%clk 0:00:10.3]} 44...
Ke7 {[%clk 0:02:02.9]} 45. Ke3 {[%clk 0:00:08.3]} 45... Kf6 {[%clk 0:02:01.3]}
46. a4 {[%clk 0:00:07.3]} 46... Be8 {[%clk 0:02:01]} 47. Bd1 {[%clk 0:00:07.7]}
47... e5 {[%clk 0:01:54.8]} 48. fxe5+ {[%clk 0:00:05.8]} 48... Kxe5 {[%clk
0:01:55.8]} 49. a5 {[%clk 0:00:07.7]} 49... Bb5 {[%clk 0:01:55]} 50. h6 {[%clk
0:00:04.4]} 50... Kf6 {[%clk 0:01:56.2]} 51. Kf4 {[%clk 0:00:03.7]} 51... Kg6
{[%clk 0:01:55.1]} 52. h7 {[%clk 0:00:03.9]} 52... Kxh7 {[%clk 0:01:55.7]} 53.
Kxf5 {[%clk 0:00:05.5]} 53... c3 {[%clk 0:01:55.8]} 54. Bc2 {[%clk 0:00:05.1]}
54... Kg7 {[%clk 0:01:56.1]} 55. Ke5 {[%clk 0:00:05.1]} 55... Kh6 {[%clk
0:01:56.2]} 56. Kf4 {[%clk 0:00:04.4]} 56... Bc4 {[%clk 0:01:55.9]} 57. g4
{[%clk 0:00:04]} 57... Bb5 {[%clk 0:01:54.8]} 58. g5+ {[%clk 0:00:04.5]} 58...
Kg7 {[%clk 0:01:56.1]} 59. Ke5 {[%clk 0:00:05]} 59... Ba6 {[%clk 0:01:42.9]} 60.
Kd4 {[%clk 0:00:06.1]} 60... Kf7 {[%clk 0:01:37.5]} 61. Kxc3 {[%clk 0:00:06.6]}
61... Ke6 {[%clk 0:01:38.2]} 62. Kd4 {[%clk 0:00:05.5]} 62... Kd6 {[%clk
0:01:37.1]} 63. Bd3 {[%clk 0:00:04.9]} 63... Bc8 {[%clk 0:01:34.7]} 64. g6
{[%clk 0:00:05.8]} 64... Ke7 {[%clk 0:01:34.2]} 65. a6 {[%clk 0:00:03.9]} 65...
Kf6 {[%clk 0:01:27.5]} 66. a7 {[%clk 0:00:05.1]} 66... Bb7 {[%clk 0:01:28.5]}
67. Kc5 {[%clk 0:00:05.5]} 67... Ba8 {[%clk 0:01:27]} 68. Kd4 {[%clk 0:00:06.5]}
68... Bb7 {[%clk 0:01:22.4]} 69. Be4 {[%clk 0:00:07.5]} 69... Ba8 {[%clk
0:01:22.1]} 70. Bxa8 {[%clk 0:00:07.9]} 70... Kxg6 {[%clk 0:01:23.7]} 71. Bh1
{[%clk 0:00:07.4]} 1-0

[Event "*** Titled Tuesday Blitz"]
[Site "Chess.com"]
[Date "2018.05.01"]
[Round "4"]
[White "GulamaliRises"]
[Black "penguingm1"]
[Result "1/2-1/2"]
[WhiteElo "2493"]
[BlackElo "2738"]
[TimeControl "180+2"]
[EndTime "13:53:57 PDT"]
[Termination "Game drawn by agreement"]

1. e4 {[%clk 0:03:01.9]} 1... e5 {[%clk 0:02:55.9]} 2. Nc3 {[%clk 0:03:00.6]}
2... Nc6 {[%clk 0:02:52.3]} 3. f4 {[%clk 0:03:01.2]} 3... exf4 {[%clk 0:02:48]}
4. Nf3 {[%clk 0:02:56.2]} 4... Nge7 {[%clk 0:02:48.9]} 5. Bc4 {[%clk 0:02:50.6]}
5... Na5 {[%clk 0:02:46.3]} 6. Be2 {[%clk 0:02:46.4]} 6... d5 {[%clk 0:02:47.1]}
7. exd5 {[%clk 0:02:41.5]} 7... Nxd5 {[%clk 0:02:47.8]} 8. Nxd5 {[%clk
0:02:35.7]} 8... Qxd5 {[%clk 0:02:49.7]} 9. d4 {[%clk 0:02:37.3]} 9... Bd6
{[%clk 0:02:42.9]} 10. O-O {[%clk 0:02:37.9]} 10... O-O {[%clk 0:02:40.9]} 11.
b3 {[%clk 0:02:38.9]} 11... b5 {[%clk 0:02:33.5]} 12. Bd2 {[%clk 0:02:07.7]}
12... Nc6 {[%clk 0:02:06.9]} 13. c4 {[%clk 0:02:07.5]} 13... Qe4 {[%clk
0:01:57.6]} 14. Be1 {[%clk 0:01:39.9]} 14... bxc4 {[%clk 0:01:52.6]} 15. bxc4
{[%clk 0:01:38.5]} 15... Bf5 {[%clk 0:01:41.6]} 16. Bf2 {[%clk 0:01:16.8]} 16...
Rfe8 {[%clk 0:01:40]} 17. Nh4 {[%clk 0:01:11.5]} 17... Qxe2 {[%clk 0:01:21.8]}
18. Nxf5 {[%clk 0:01:12.7]} 18... Qxc4 {[%clk 0:01:04.7]} 19. Qg4 {[%clk
0:00:59.7]} 19... Bf8 {[%clk 0:00:32.8]} 20. Rac1 {[%clk 0:01:00.4]} 20... Qd5
{[%clk 0:00:25.4]} 21. Rc5 {[%clk 0:01:01.3]} 21... Qe6 {[%clk 0:00:10]} 22. d5
{[%clk 0:00:20.9]} 22... Ne5 {[%clk 0:00:09.6]} 23. dxe6 {[%clk 0:00:21.1]}
23... Nxg4 {[%clk 0:00:10.8]} 24. exf7+ {[%clk 0:00:23]} 24... Kxf7 {[%clk
0:00:12.5]} 25. Rxc7+ {[%clk 0:00:24.9]} 25... Kf6 {[%clk 0:00:12.2]} 26. Nxg7
{[%clk 0:00:18.1]} 26... Nxf2 {[%clk 0:00:10.2]} 27. Nxe8+ {[%clk 0:00:18.8]}
27... Rxe8 {[%clk 0:00:08]} 28. Kxf2 {[%clk 0:00:17.2]} 28... Re5 {[%clk
0:00:05]} 29. Kf3 {[%clk 0:00:16]} 29... Ra5 {[%clk 0:00:04.6]} 30. Rf2 {[%clk
0:00:14.2]} 30... h5 {[%clk 0:00:05.8]} 31. Rc6+ {[%clk 0:00:13.5]} 31... Kf5
{[%clk 0:00:06.3]} 32. Rfc2 {[%clk 0:00:10.2]} 32... Bb4 {[%clk 0:00:06.8]} 33.
Rc8 {[%clk 0:00:08.8]} 33... Ra3+ {[%clk 0:00:07.6]} 34. Ke2 {[%clk 0:00:09.4]}
34... Re3+ {[%clk 0:00:08.2]} 35. Kf1 {[%clk 0:00:10.4]} 35... Be7 {[%clk
0:00:07.4]} 36. R8c7 {[%clk 0:00:09.9]} 36... a5 {[%clk 0:00:05.2]} 37. Kf2
{[%clk 0:00:10.8]} 37... Bh4+ {[%clk 0:00:04.5]} 38. g3 {[%clk 0:00:11.7]} 38...
Bf6 {[%clk 0:00:05.5]} 39. R7c5+ {[%clk 0:00:11.9]} 39... Kg4 {[%clk 0:00:06.2]}
40. gxf4 {[%clk 0:00:07.1]} 40... Bd4 {[%clk 0:00:06.5]} 41. R5c4 {[%clk
0:00:07.9]} 41... Bb6 {[%clk 0:00:05.1]} 42. Kg2 {[%clk 0:00:08.6]} 42... h4
{[%clk 0:00:06.1]} 43. f5+ {[%clk 0:00:09.3]} 43... Kg5 {[%clk 0:00:06.7]} 44.
h3 {[%clk 0:00:09.9]} 44... Rg3+ {[%clk 0:00:07.6]} 45. Kh2 {[%clk 0:00:11.4]}
45... Bg1+ {[%clk 0:00:08.9]} 46. Kh1 {[%clk 0:00:12.4]} 46... Kxf5 {[%clk
0:00:07.5]} 47. Rg2 {[%clk 0:00:12.5]} 47... Be3 {[%clk 0:00:04.2]} 48. Rxg3
{[%clk 0:00:13.5]} 48... hxg3 {[%clk 0:00:05.6]} 49. Kg2 {[%clk 0:00:15.1]}
49... Bf2 {[%clk 0:00:05.4]} 50. Rc2 {[%clk 0:00:16.1]} 50... Be1 {[%clk
0:00:06.2]} 51. Re2 {[%clk 0:00:17.3]} 51... Bf2 {[%clk 0:00:06.4]} 52. Rxf2+
{[%clk 0:00:18.5]} 52... gxf2 {[%clk 0:00:08.3]} 53. Kxf2 {[%clk 0:00:20.4]}
53... Kf4 {[%clk 0:00:09]} 54. a4 {[%clk 0:00:20.4]} 54... Ke4 {[%clk
0:00:09.6]} 55. h4 {[%clk 0:00:21]} 55... Kf4 {[%clk 0:00:10.8]} 56. h5 {[%clk
0:00:22.4]} 56... Kg5 {[%clk 0:00:12.1]} 57. Ke3 {[%clk 0:00:23.9]} 57... Kxh5
{[%clk 0:00:13.4]} 58. Kd4 {[%clk 0:00:25.8]} 58... Kg5 {[%clk 0:00:15.3]} 59.
Kc5 {[%clk 0:00:27.7]} 59... Kf6 {[%clk 0:00:16.9]} 60. Kb6 {[%clk 0:00:29.6]}
60... Ke6 {[%clk 0:00:17.3]} 61. Kxa5 {[%clk 0:00:31.2]} 61... Kd7 {[%clk
0:00:18.7]} 62. Kb6 {[%clk 0:00:27.3]} 62... Kc8 {[%clk 0:00:19.9]} 63. Kc6
{[%clk 0:00:28.7]} 63... Kb8 {[%clk 0:00:21.2]} 64. Kb6 {[%clk 0:00:30.6]} 64...
Ka8 {[%clk 0:00:23.1]} 65. Kc6 {[%clk 0:00:31.6]} 65... Kb8 {[%clk 0:00:25]} 66.
Kb6 {[%clk 0:00:33.5]} 1/2-1/2

[Event "*** Titled Tuesday Blitz"]
[Site "Chess.com"]
[Date "2018.05.01"]
[Round "4"]
[White "Maghalashvili"]
[Black "ChainsOfFantasia"]
[Result "0-1"]
[WhiteElo "2602"]
[BlackElo "2432"]
[TimeControl "180+2"]
[EndTime "13:54:07 PDT"]
[Termination "ChainsOfFantasia won by checkmate"]

1. Nf3 {[%clk 0:02:53.9]} 1... Nf6 {[%clk 0:02:59.1]} 2. g3 {[%clk 0:02:54.5]}
2... e6 {[%clk 0:03:01]} 3. Bg2 {[%clk 0:02:55.4]} 3... d5 {[%clk 0:03:02.9]} 4.
O-O {[%clk 0:02:56.4]} 4... Be7 {[%clk 0:03:04.8]} 5. d3 {[%clk 0:02:57.7]} 5...
O-O {[%clk 0:03:05.6]} 6. Nbd2 {[%clk 0:02:59.2]} 6... c5 {[%clk 0:03:06.7]} 7.
e4 {[%clk 0:03:00.7]} 7... Nc6 {[%clk 0:03:06.2]} 8. e5 {[%clk 0:03:00.6]} 8...
Nd7 {[%clk 0:03:06.4]} 9. Re1 {[%clk 0:03:02.2]} 9... b5 {[%clk 0:03:07.3]} 10.
Nf1 {[%clk 0:03:02.8]} 10... b4 {[%clk 0:03:07.4]} 11. h4 {[%clk 0:03:03.2]}
11... a5 {[%clk 0:03:08.3]} 12. Bf4 {[%clk 0:03:03.5]} 12... a4 {[%clk 0:03:06]}
13. a3 {[%clk 0:03:04.5]} 13... bxa3 {[%clk 0:03:06.5]} 14. bxa3 {[%clk
0:03:05.2]} 14... Qa5 {[%clk 0:03:03.3]} 15. Ne3 {[%clk 0:02:57.9]} 15... Nd4
{[%clk 0:03:00.9]} 16. Ng4 {[%clk 0:02:45.6]} 16... Rb8 {[%clk 0:02:40.8]} 17.
Bg5 {[%clk 0:02:41]} 17... Qd8 {[%clk 0:02:24.5]} 18. Nxd4 {[%clk 0:02:36.1]}
18... cxd4 {[%clk 0:02:26.4]} 19. Qd2 {[%clk 0:02:35.1]} 19... Re8 {[%clk
0:02:01.5]} 20. Qf4 {[%clk 0:02:19.7]} 20... Nf8 {[%clk 0:01:56.1]} 21. Bxe7
{[%clk 0:02:15.9]} 21... Rxe7 {[%clk 0:01:58]} 22. Qxd4 {[%clk 0:02:07.5]} 22...
Qa5 {[%clk 0:01:43.2]} 23. h5 {[%clk 0:01:54.6]} 23... h6 {[%clk 0:01:39]} 24.
c4 {[%clk 0:01:43.2]} 24... dxc4 {[%clk 0:01:39.2]} 25. dxc4 {[%clk 0:01:33.8]}
25... Bb7 {[%clk 0:01:36.9]} 26. Bxb7 {[%clk 0:01:30.1]} 26... Rexb7 {[%clk
0:01:38.8]} 27. c5 {[%clk 0:01:14.7]} 27... Rc8 {[%clk 0:01:36.3]} 28. Rec1
{[%clk 0:01:10.7]} 28... Rbc7 {[%clk 0:01:36.3]} 29. Rab1 {[%clk 0:00:49.5]}
29... Rxc5 {[%clk 0:01:23.4]} 30. Rxc5 {[%clk 0:00:50.4]} 30... Qxc5 {[%clk
0:01:24.9]} 31. Qxc5 {[%clk 0:00:51.4]} 31... Rxc5 {[%clk 0:01:26.8]} 32. Rb4
{[%clk 0:00:52.4]} 32... Nd7 {[%clk 0:01:18.4]} 33. f4 {[%clk 0:00:50.7]} 33...
Rc3 {[%clk 0:01:19]} 34. Kg2 {[%clk 0:00:49.3]} 34... Rxa3 {[%clk 0:01:19.4]}
35. Rb7 {[%clk 0:00:50.3]} 35... Nc5 {[%clk 0:01:18.8]} 36. Rb8+ {[%clk
0:00:50.3]} 36... Kh7 {[%clk 0:01:20]} 37. Rf8 {[%clk 0:00:45.7]} 37... Ne4
{[%clk 0:01:21]} 38. Kh3 {[%clk 0:00:31.4]} 38... Rxg3+ {[%clk 0:01:13.2]} 39.
Kh4 {[%clk 0:00:31.8]} 39... Rg1 {[%clk 0:00:46.7]} 40. Kh3 {[%clk 0:00:32.6]}
40... a3 {[%clk 0:00:42.2]} 41. Ra8 {[%clk 0:00:27.4]} 41... Ra1 {[%clk
0:00:40.5]} 42. Ne3 {[%clk 0:00:27.5]} 42... a2 {[%clk 0:00:41.1]} 43. Nc2
{[%clk 0:00:20.9]} 43... Rf1 {[%clk 0:00:34.9]} 44. Rxa2 {[%clk 0:00:19]} 44...
Rxf4 {[%clk 0:00:36.4]} 45. Ra7 {[%clk 0:00:18.3]} 45... Rf3+ {[%clk 0:00:33.6]}
46. Kg4 {[%clk 0:00:18.2]} 46... Rf2 {[%clk 0:00:33.8]} 47. Nd4 {[%clk
0:00:18.8]} 47... g5 {[%clk 0:00:25.2]} 48. Nc6 {[%clk 0:00:12.6]} 48... Rf4+
{[%clk 0:00:24.7]} 49. Kh3 {[%clk 0:00:14]} 49... g4+ {[%clk 0:00:25.1]} 50. Kg2
{[%clk 0:00:13.2]} 50... Rf2+ {[%clk 0:00:25.9]} 51. Kg1 {[%clk 0:00:14.2]}
51... g3 {[%clk 0:00:25.9]} 52. Nd8 {[%clk 0:00:15.7]} 52... Kg8 {[%clk
0:00:25.6]} 53. Ra8 {[%clk 0:00:13.9]} 53... Kg7 {[%clk 0:00:26.6]} 54. Ra7
{[%clk 0:00:15.3]} 54... Kf8 {[%clk 0:00:23.4]} 55. Ra8 {[%clk 0:00:15.7]} 55...
Ke7 {[%clk 0:00:22.6]} 56. Nc6+ {[%clk 0:00:15.9]} 56... Kd7 {[%clk 0:00:23.9]}
57. Nd4 {[%clk 0:00:16.2]} 57... Ng5 {[%clk 0:00:23.6]} 58. Ra7+ {[%clk
0:00:16.4]} 58... Kc8 {[%clk 0:00:24.2]} 59. Kh1 {[%clk 0:00:08.7]} 59... Nh3
{[%clk 0:00:19.6]} 60. Ra1 {[%clk 0:00:07.2]} 60... Rh2# {[%clk 0:00:20.1]} 0-1

[Event "*** Titled Tuesday Blitz"]
[Site "Chess.com"]
[Date "2018.05.01"]
[Round "4"]
[White "Annawel"]
[Black "GrigorGrigorov"]
[Result "0-1"]
[WhiteElo "2790"]
[BlackElo "2665"]
[TimeControl "180+2"]
[EndTime "13:54:25 PDT"]
[Termination "GrigorGrigorov won by resignation"]

1. e4 {[%clk 0:02:59.5]} 1... d5 {[%clk 0:02:54.5]} 2. exd5 {[%clk 0:03:00.3]}
2... Qxd5 {[%clk 0:02:56]} 3. Nc3 {[%clk 0:03:01.7]} 3... Qd8 {[%clk 0:02:57]}
4. Nf3 {[%clk 0:03:01.7]} 4... Bg4 {[%clk 0:02:56.4]} 5. d4 {[%clk 0:03:00.4]}
5... Nf6 {[%clk 0:02:56.4]} 6. Be2 {[%clk 0:02:55.7]} 6... c6 {[%clk 0:02:56.8]}
7. O-O {[%clk 0:02:55.5]} 7... e6 {[%clk 0:02:56.8]} 8. a3 {[%clk 0:02:50.4]}
8... Nbd7 {[%clk 0:02:52.7]} 9. Re1 {[%clk 0:02:50.8]} 9... Be7 {[%clk
0:02:53.3]} 10. Bf4 {[%clk 0:02:50.7]} 10... O-O {[%clk 0:02:53.3]} 11. Qd2
{[%clk 0:02:47.2]} 11... Nd5 {[%clk 0:02:53.4]} 12. Bg3 {[%clk 0:02:46.1]} 12...
N7b6 {[%clk 0:02:36.1]} 13. h3 {[%clk 0:02:40.7]} 13... Bxf3 {[%clk 0:02:35.3]}
14. Bxf3 {[%clk 0:02:42.6]} 14... Nc4 {[%clk 0:02:36.3]} 15. Qe2 {[%clk
0:02:21.5]} 15... Nxb2 {[%clk 0:02:31.3]} 16. Ne4 {[%clk 0:02:07.7]} 16... b5
{[%clk 0:02:27]} 17. a4 {[%clk 0:01:40]} 17... a6 {[%clk 0:02:24.5]} 18. Nd2
{[%clk 0:01:23.9]} 18... Bb4 {[%clk 0:02:07.3]} 19. Rec1 {[%clk 0:00:47.4]}
19... Bc3 {[%clk 0:01:45.5]} 20. Ne4 {[%clk 0:00:43.1]} 20... Nxa4 {[%clk
0:01:38.5]} 21. Nxc3 {[%clk 0:00:31.8]} 21... Naxc3 {[%clk 0:01:38.1]} 22. Qd3
{[%clk 0:00:33.2]} 22... a5 {[%clk 0:01:28.3]} 23. h4 {[%clk 0:00:22]} 23... a4
{[%clk 0:01:22.8]} 24. h5 {[%clk 0:00:23.1]} 24... h6 {[%clk 0:01:15]} 25. Re1
{[%clk 0:00:22.8]} 25... b4 {[%clk 0:01:03.3]} 26. Be5 {[%clk 0:00:20.8]} 26...
Qg5 {[%clk 0:00:43.9]} 27. Bd6 {[%clk 0:00:21.7]} 27... Rfb8 {[%clk 0:00:19.5]}
28. Re5 {[%clk 0:00:21]} 28... Qd8 {[%clk 0:00:17.7]} 29. Bxb8 {[%clk
0:00:22.2]} 29... Qxb8 {[%clk 0:00:17.2]} 30. Qc4 {[%clk 0:00:23.6]} 30... b3
{[%clk 0:00:17.6]} 31. cxb3 {[%clk 0:00:24.7]} 31... a3 {[%clk 0:00:13]} 32.
Bxd5 {[%clk 0:00:17.3]} 32... Nxd5 {[%clk 0:00:12.3]} 33. Ree1 {[%clk
0:00:16.6]} 33... Qb6 {[%clk 0:00:09.4]} 34. g3 {[%clk 0:00:16.4]} 34... Ra5
{[%clk 0:00:08.7]} 35. Rec1 {[%clk 0:00:13]} 35... Ra6 {[%clk 0:00:09.3]} 36. b4
{[%clk 0:00:07.6]} 36... Ra4 {[%clk 0:00:09.7]} 37. Qxc6 {[%clk 0:00:08]} 37...
Qxc6 {[%clk 0:00:09.8]} 38. Rxc6 {[%clk 0:00:09.9]} 38... Nxb4 {[%clk
0:00:08.7]} 39. Rc8+ {[%clk 0:00:10.2]} 39... Kh7 {[%clk 0:00:08.8]} 40. Rc4
{[%clk 0:00:11.9]} 40... a2 {[%clk 0:00:10.1]} 41. Kg2 {[%clk 0:00:13.2]} 41...
Kg8 {[%clk 0:00:11.1]} 42. Rc8+ {[%clk 0:00:14.4]} 42... Kh7 {[%clk 0:00:12]}
43. Rc4 {[%clk 0:00:16.3]} 43... g6 {[%clk 0:00:11.6]} 44. Rc7 {[%clk
0:00:14.3]} 44... Kg7 {[%clk 0:00:12.1]} 45. hxg6 {[%clk 0:00:15.7]} 45... Kxg6
{[%clk 0:00:13.2]} 46. Rc5 {[%clk 0:00:15.4]} 46... Ra3 {[%clk 0:00:12.5]} 47.
Rc4 {[%clk 0:00:13.8]} 47... Rb3 {[%clk 0:00:12.7]} 48. d5 {[%clk 0:00:02.9]}
48... Rb1 {[%clk 0:00:12]} 49. Rxb4 {[%clk 0:00:03.2]} 49... Rxa1 {[%clk
0:00:11.3]} 50. Rg4+ {[%clk 0:00:03.6]} 50... Kf5 {[%clk 0:00:10.3]} 51. Rf4+
{[%clk 0:00:03.9]} 51... Ke5 {[%clk 0:00:10.7]} 52. Ra4 {[%clk 0:00:02.9]} 52...
exd5 {[%clk 0:00:11.7]} 53. Kf3 {[%clk 0:00:03.7]} 53... d4 {[%clk 0:00:12.3]}
54. Ra5+ {[%clk 0:00:05.2]} 54... Kd6 {[%clk 0:00:12.8]} 55. Ra8 {[%clk
0:00:06]} 55... d3 {[%clk 0:00:12.6]} 56. Ra6+ {[%clk 0:00:05.6]} 56... Kc5
{[%clk 0:00:13.1]} 57. Ra8 {[%clk 0:00:01.4]} 57... d2 {[%clk 0:00:13.6]} 58.
Rc8+ {[%clk 0:00:02.4]} 58... Kb6 {[%clk 0:00:14.3]} 59. Rb8+ {[%clk 0:00:03.8]}
59... Kc7 {[%clk 0:00:15.2]} 0-1